[Event "Belarus-ch Women 2022"]
[Site "Minsk"]
[Date "2022.01.18"]
[Round "8.5"]
[White "Khomich, Maryna"]
[Black "Koishman, Karina"]
[Result "1-0"]
[ECO "D34"]
[WhiteElo "1627"]
[BlackElo "1359"]
[Annotator "NA RC"]
[PlyCount "105"]
[EventDate "2022.01.11"]
[EventType "tourn"]
[EventCountry "BLR"]
[SourceTitle "playchess.com"]
[Source "ChessBase"]
[SourceQuality "1"]
[TimeControl "40/5400+30:1800+30"]

1. Nf3 {[%emt 0:00:02]} Nf6 {[%emt 0:00:30]} 2. g3 {[%emt 0:00:12]} e6 {[%emt 0:00:17]} 3. Bg2 {[%emt 0:00:17]} d5 {[%emt 0:00:15]} 4. c4 {[%emt 0:00:45]} c5 {[%emt 0:02:01]} 5. O-O {[%emt 0:04:14]} Nc6 {[%emt 0:04:16]} 6. cxd5 {[%emt 0:00:26]} exd5 {[%emt 0:00:22]} 7. d4 {[%emt 0:00:19]} cxd4 {[%emt 0:01:17]} 8. Nxd4 {[%emt 0:00:15]} Be7 {[%emt 0:01:15]} 9. Nc3 {[%emt 0:04:39]} O-O {[%emt 0:03:46]} 10. Be3 {[%emt 0:06:32]} Re8 {[%emt 0:06:44]} 11. Qa4 {[%emt 0:05:43]} Be6 {[%emt 0:11:05]} 12. Nxc6 {[%emt 0:10:22]} bxc6 {[%emt 0:00:27]} 13. Qxc6 {[%emt 0:01:28]} Rc8 {[%emt 0:08:58]} 14. Qa6 {[%emt 0:01:13]} Rc4 {[%emt 0:07:18]} 15. Bxa7 {[%emt 0:10:53]} Bc8 {[%emt 0:09:00]} 16. Qb6 {[%emt 0:03:38]} Qd7 {[%emt 0:01:07]} 17. Qb5 {[%emt 0:14:45]} Qxb5 {[%emt 0:15:10]} 18. Nxb5 {[%emt 0:00:09]} Bd7 {[%emt 0:00:45]} 19. Nc3 {[%emt 0:03:45]} d4 {[%emt 0:05:00]} 20. Nd5 {[%emt 0:08:26]} Nxd5 {[%emt 0:03:58]} 21. Bxd5 {[%emt 0:00:05]} Rb4 {[%emt 0:01:12]} 22. b3 {[%emt 0:07:59]} Bf6 {[%emt 0:03:23]} 23. Rad1 {[%emt 0:00:52]} Bh3 {[%emt 0:05:24]} 24. Rfe1 {[%emt 0:05:54]} Rd8 {[%emt 0:03:21]} 25. Bg2 {[%emt 0:05:44]} Bxg2 {[%emt 0:02:15]} 26. Kxg2 {[%emt 0:00:02]} h6 {[%emt 0:00:47]} 27. Rd2 {[%emt 0:02:11]} Rb5 {[%emt 0:01:48]} 28. Rc1 {[%emt 0:01:01]} Rb7 {[%emt 0:02:15]} 29. Bc5 {[%emt 0:00:19]} Kh7 {[%emt 0:00:31]} 30. Rcd1 {[%emt 0:01:00]} Ra8 {[%emt 0:00:29]} 31. Rc2 {[%emt 0:01:15]} Rd7 {[%emt 0:00:26]} 32. a4 {[%emt 0:00:40]} Kg6 {[%emt 0:00:31]} 33. Rd3 {[%emt 0:00:29]} Kf5 {[%emt 0:00:31]} 34. Rcd2 {[%emt 0:00:51]} Rb7 {[%emt 0:00:29]} 35. Kf3 {[%emt 0:00:28]} g5 {[%emt 0:00:35]} 36. h3 {[%emt 0:00:23]} Be5 {[%emt 0:00:29]} 37. Ra2 {[%emt 0:00:34]} Ke6 {[%emt 0:00:29]} 38. a5 {[%emt 0:00:47]} f5 {[%emt 0:00:28]} 39. b4 {[%emt 0:00:36]} h5 {[%emt 0:00:18]} 40. Ra4 {[%emt 0:00:00]} g4+ {[%emt 0:00:00]} 41. Kg2 {[%emt 0:00:51]} h4 {[%emt 0:01:53]} 42. Bxd4 {[%emt 0:08:16]} Bd6 {[%emt 0:04:00]} 43. Bc5 {[%emt 0:07:02]} Be5 {[%emt 0:03:52]} 44. hxg4 {[%emt 0:03:09]} fxg4 {[%emt 0:01:06]} 45. gxh4 {[%emt 0:00:04]} Rh7 {[%emt 0:00:28]} 46. a6 {[%emt 0:03:08]} Rxh4 {[%emt 0:00:32]} 47. e3 {[%emt 0:00:17]} Rh2+ {[%emt 0:01:26]} 48. Kf1 {[%emt 0:00:05]} g3 {[%emt 0:00:11]} 49. fxg3 {[%emt 0:01:15]} Rah8 {[%emt 0:01:04]} 50. e4 {[%emt 0:01:40]} Rc2 {[%emt 0:01:33]} 51. a7 {[%emt 0:04:43]} Rhh2 {[%emt 0:03:02]} 52. Ra6+ {[%emt 0:01:30]} Bd6 {[%emt 0:01:47]} 53. Rdxd6+ {[%emt 0:00:10]} 1-0

[Event "Belarus-ch Women 2022"]
[Site "Minsk"]
[Date "2022.01.19"]
[Round "9.1"]
[White "Koishman, Karina"]
[Black "Sidorenja, Milena"]
[Result "1/2-1/2"]
[ECO "A80"]
[WhiteElo "1359"]
[BlackElo "1510"]
[Annotator "NA"]
[PlyCount "60"]
[EventDate "2022.01.11"]
[EventType "tourn"]
[EventCountry "BLR"]
[SourceTitle "playchess.com"]
[Source "ChessBase"]
[SourceQuality "1"]
[TimeControl "40/5400+30:1800+30"]

1. d4 {[%emt 0:00:02]} d5 {[%emt 0:00:07]} 2. Nc3 {[%emt 0:00:08]} f5 {[%emt 0:00:34]} 3. f3 {[%emt 0:00:15]} Nf6 {[%emt 0:00:27]} 4. Bg5 {[%emt 0:00:17]} e6 {[%emt 0:01:52]} 5. e4 {[%emt 0:00:21]} Be7 {[%emt 0:00:15]} 6. e5 {[%emt 0:00:11]} Nfd7 {[%emt 0:01:02]} 7. Bxe7 {[%emt 0:00:25]} Qxe7 {[%emt 0:00:10]} 8. f4 {[%emt 0:00:17]} O-O {[%emt 0:00:45]} 9. Nf3 {[%emt 0:01:42]} a6 {[%emt 0:02:42]} 10. Bd3 {[%emt 0:02:02]} c5 {[%emt 0:00:10]} 11. O-O {[%emt 0:01:16]} b5 {[%emt 0:03:39]} 12. a3 {[%emt 0:04:26]} Nc6 {[%emt 0:03:00]} 13. Qe1 {[%emt 0:05:17]} Bb7 {[%emt 0:01:54]} 14. Qg3 {[%emt 0:10:27]} Rac8 {[%emt 0:02:04]} 15. Qh3 {[%emt 0:03:15]} Nxd4 {[%emt 0:16:18]} 16. Nxd4 {[%emt 0:04:06]} cxd4 {[%emt 0:00:08]} 17. Ne2 {[%emt 0:00:15]} Nc5 {[%emt 0:00:09]} 18. Nxd4 {[%emt 0:02:51]} Nxd3 {[%emt 0:00:51]} 19. cxd3 {[%emt 0:04:00]} Qc5 {[%emt 0:00:35]} 20. Qe3 {[%emt 0:00:14]} g6 {[%emt 0:00:30]} 21. Rac1 {[%emt 0:00:30]} Qb6 {[%emt 0:00:30]} 22. Nxf5 {[%emt 0:00:30]} Qxe3+ {[%emt 0:00:30]} 23. Nxe3 {[%emt 0:00:30]} Rxc1 {[%emt 0:00:30]} 24. Rxc1 {[%emt 0:00:30]} Rxf4 {[%emt 0:00:30]} 25. Rc7 {[%emt 0:00:30]} Rf7 {[%emt 0:00:30]} 26. Rxf7 {[%emt 0:00:30]} Kxf7 {[%emt 0:00:30]} 27. d4 {[%emt 0:00:30]} h5 {[%emt 0:00:30]} 28. h4 {[%emt 0:00:30]} g5 {[%emt 0:00:30]} 29. g3 {[%emt 0:00:30]} Kg6 {[%emt 0:09:10]} 30. b4 {[%emt 0:05:30]} Bc6 {[%emt 0:00:15]} 1/2-1/2

[Event "Belarus-ch Women 2022"]
[Site "Minsk"]
[Date "2022.01.19"]
[Round "9.2"]
[White "Poliakova, Varvara"]
[Black "Khomich, Maryna"]
[Result "1-0"]
[ECO "B18"]
[WhiteElo "2116"]
[BlackElo "1627"]
[Annotator "ChessBase"]
[PlyCount "47"]
[EventDate "2022.01.11"]
[EventType "tourn"]
[EventCountry "BLR"]
[SourceTitle "playchess.com"]
[Source "ChessBase"]
[SourceQuality "1"]
[TimeControl "40/5400+30:1800+30"]

1. e4 {[%emt 0:00:02]} c6 {[%emt 0:00:06]} 2. d4 {[%emt 0:00:03]} d5 {[%emt 0:00:06]} 3. Nd2 {[%emt 0:00:03]} dxe4 {[%emt 0:00:10]} 4. Nxe4 {[%emt 0:00:07]} Bf5 {[%emt 0:00:08]} 5. Ng3 {[%emt 0:00:03]} Bg6 {[%emt 0:00:08]} 6. h4 {[%emt 0:00:13]} h6 {[%emt 0:00:11]} 7. Nh3 {[%emt 0:00:29]} e6 {[%emt 0:00:45]} 8. Nf4 {[%emt 0:01:12]} Bh7 {[%emt 0:00:13]} 9. c3 {[%emt 0:00:43]} Nf6 {[%emt 0:01:03]} 10. Bd3 {[%emt 0:00:43]} Bxd3 {[%emt 0:00:25]} 11. Qxd3 {[%emt 0:00:06]} Nbd7 {[%emt 0:02:56]} 12. O-O {[%emt 0:03:21]} Bd6 {[%emt 0:09:42]} 13. Re1 {[%emt 0:06:54]} O-O {[%emt 0:02:20]} 14. Qf3 {[%emt 0:01:56]} Nd5 {[%emt 0:02:33]} 15. Nfh5 {[%emt 0:07:56]} N5f6 {[%emt 0:21:19]} 16. Ne4 {[%emt 0:04:39]} Be7 {[%emt 0:00:53]} 17. Nexf6+ {[%emt 0:11:36]} Nxf6 {[%emt 0:00:14]} 18. Bxh6 {[%emt 0:02:39]} Nxh5 {[%emt 0:03:11]} 19. Qxh5 {[%emt 0:00:19]} Bxh4 {[%emt 0:12:27]} 20. Re4 {[%emt 0:02:59]} Bf6 {[%emt 0:01:29]} 21. Rg4 {[%emt 0:00:11]} Qd5 {[%emt 0:07:17]} 22. Rxg7+ {[%emt 0:01:26]} Kh8 {[%emt 0:01:11]} 23. Bg5+ {[%emt 0:00:17]} Kxg7 {[%emt 0:02:18]} 24. Qh6+ {[%emt 0:00:02]} 1-0

[Event "Belarus-ch Women 2022"]
[Site "Minsk"]
[Date "2022.01.19"]
[Round "9.3"]
[White "Shaban, Aliaksandra"]
[Black "Norman, Kseniya"]
[Result "1/2-1/2"]
[ECO "A35"]
[WhiteElo "1680"]
[BlackElo "1810"]
[Annotator "NA"]
[PlyCount "40"]
[EventDate "2022.01.11"]
[EventType "tourn"]
[EventCountry "BLR"]
[SourceTitle "playchess.com"]
[Source "ChessBase"]
[SourceQuality "1"]
[TimeControl "40/5400+30:1800+30"]

1. d4 {[%emt 0:00:02]} g6 {[%emt 0:00:20]} 2. c4 {[%emt 0:00:06]} Bg7 {[%emt 0:00:06]} 3. Nc3 {[%emt 0:00:03]} c5 {[%emt 0:00:25]} 4. Nf3 {[%emt 0:00:25]} cxd4 {[%emt 0:04:28]} 5. Nxd4 {[%emt 0:00:06]} Nc6 {[%emt 0:00:19]} 6. e3 {[%emt 0:01:09]} Nf6 {[%emt 0:00:54]} 7. Be2 {[%emt 0:01:12]} O-O {[%emt 0:01:29]} 8. O-O {[%emt 0:00:18]} d6 {[%emt 0:01:20]} 9. Bf3 {[%emt 0:01:58]} Ne5 {[%emt 0:05:01]} 10. Be2 {[%emt 0:01:17]} Bd7 {[%emt 0:03:58]} 11. b3 {[%emt 0:01:18]} a6 {[%emt 0:01:09]} 12. Bb2 {[%emt 0:00:18]} Rc8 {[%emt 0:01:32]} 13. Rc1 {[%emt 0:00:18]} Re8 {[%emt 0:18:39]} 14. Qd2 {[%emt 0:03:34]} Qb6 {[%emt 0:13:38]} 15. Rfd1 {[%emt 0:05:09]} Qa7 {[%emt 0:02:28]} 16. h3 {[%emt 0:01:36]} Nc6 {[%emt 0:06:28]} 17. Bf3 {[%emt 0:02:00]} Ne5 {[%emt 0:03:55]} 18. Be2 {[%emt 0:00:45]} Nc6 {[%emt 0:00:08]} 19. Bf3 {[%emt 0:05:34]} Ne5 {[%emt 0:00:09]} 20. Be2 {[%emt 0:00:03]} Nc6 {[%emt 0:00:27]} 1/2-1/2

[Event "Belarus-ch Women 2022"]
[Site "Minsk"]
[Date "2022.01.19"]
[Round "9.4"]
[White "Liashkevich, Lizaveta"]
[Black "Zeliantsova, Kseniya"]
[Result "0-1"]
[ECO "A42"]
[WhiteElo "1569"]
[BlackElo "1988"]
[Annotator "ChessBase"]
[PlyCount "80"]
[EventDate "2022.01.11"]
[EventType "tourn"]
[EventCountry "BLR"]
[SourceTitle "playchess.com"]
[Source "ChessBase"]
[SourceQuality "1"]
[TimeControl "40/5400+30:1800+30"]

1. d4 {[%emt 0:00:02]} d6 {[%emt 0:00:12]} 2. c4 {[%emt 0:00:26]} g6 {[%emt 0:00:47]} 3. Nf3 {[%emt 0:01:28]} Bg7 {[%emt 0:00:05]} 4. e4 {[%emt 0:00:45]} Nd7 {[%emt 0:00:19]} 5. Nc3 {[%emt 0:00:24]} e5 {[%emt 0:01:46]} 6. Be2 {[%emt 0:02:07]} Ne7 {[%emt 0:03:40]} 7. dxe5 {[%emt 0:02:26]} dxe5 {[%emt 0:01:54]} 8. h4 {[%emt 0:02:21]} h6 {[%emt 0:04:39]} 9. h5 {[%emt 0:08:22]} g5 {[%emt 0:01:32]} 10. O-O {[%emt 0:00:10]} O-O {[%emt 0:01:01]} 11. Be3 {[%emt 0:01:21]} f5 {[%emt 0:13:56]} 12. exf5 {[%emt 0:01:43]} Nxf5 {[%emt 0:00:20]} 13. Qd2 {[%emt 0:18:05]} c6 {[%emt 0:05:41]} 14. c5 {[%emt 0:08:34]} Qe7 {[%emt 0:07:39]} 15. Bc4+ {[%emt 0:05:53]} Kh8 {[%emt 0:00:28]} 16. Ne4 {[%emt 0:01:11]} Nf6 {[%emt 0:06:40]} 17. Nd6 {[%emt 0:10:46]} Nxh5 {[%emt 0:21:47]} 18. Rfe1 {[%emt 0:17:04]} Be6 {[%emt 0:08:44]} 19. Bxe6 {[%emt 0:01:46]} Qxe6 {[%emt 0:00:09]} 20. Nxb7 {[%emt 0:06:39]} Nxe3 {[%emt 0:03:58]} 21. Rxe3 {[%emt 0:01:54]} Nf4 {[%emt 0:00:11]} 22. Nh2 {[%emt 0:01:52]} Nd5 {[%emt 0:04:11]} 23. Re2 {[%emt 0:01:12]} Qf7 {[%emt 0:03:52]} 24. Nd6 {[%emt 0:00:30]} Qh5 {[%emt 0:00:03]} 25. Rae1 {[%emt 0:01:23]} Rab8 {[%emt 0:01:29]} 26. b3 {[%emt 0:01:34]} Nf4 {[%emt 0:02:20]} 27. Re4 {[%emt 0:00:27]} Ne6 {[%emt 0:01:49]} 28. b4 {[%emt 0:00:54]} Nd4 {[%emt 0:01:21]} 29. Nc4 {[%emt 0:01:29]} Rbd8 {[%emt 0:00:05]} 30. Qb2 {[%emt 0:01:23]} Rf4 {[%emt 0:01:42]} 31. g3 {[%emt 0:01:03]} Rxe4 {[%emt 0:01:04]} 32. Rxe4 {[%emt 0:00:02]} Qh3 {[%emt 0:01:49]} 33. Qc3 {[%emt 0:00:44]} Qf5 {[%emt 0:00:30]} 34. Qe3 {[%emt 0:00:38]} Nc2 {[%emt 0:00:41]} 35. Qe2 {[%emt 0:00:38]} Rd4 {[%emt 0:00:55]} 36. f3 {[%emt 0:00:39]} Nxb4 {[%emt 0:00:30]} 37. a3 {[%emt 0:01:05]} Nd5 {[%emt 0:00:13]} 38. Ng4 {[%emt 0:00:00]} Nc3 {[%emt 0:00:11]} 39. Qe1 {[%emt 0:00:24]} Rd1 {[%emt 0:00:23]} 40. Qxd1 {[%emt 0:00:00]} Nxd1 {[%emt 0:00:00]} 0-1

[Event "Belarus-ch Women 2022"]
[Site "Minsk"]
[Date "2022.01.19"]
[Round "9.5"]
[White "Bendik, Margarita"]
[Black "Ajusheva, Renata"]
[Result "1/2-1/2"]
[ECO "A00"]
[WhiteElo "1388"]
[BlackElo "1464"]
[Annotator "NA"]
[PlyCount "70"]
[EventDate "2022.01.11"]
[EventType "tourn"]
[EventCountry "BLR"]
[SourceTitle "playchess.com"]
[Source "ChessBase"]
[SourceQuality "1"]
[TimeControl "40/5400+30:1800+30"]

1. b4 {[%emt 0:00:02]} e5 {[%emt 0:03:30]} 2. Bb2 {[%emt 0:00:08]} d6 {[%emt 0:00:04]} 3. c4 {[%emt 0:01:09]} Nf6 {[%emt 0:00:13]} 4. g3 {[%emt 0:03:52]} g6 {[%emt 0:00:36]} 5. Bg2 {[%emt 0:00:44]} Bg7 {[%emt 0:00:14]} 6. d3 {[%emt 0:01:08]} c6 {[%emt 0:00:26]} 7. Nd2 {[%emt 0:02:33]} h5 {[%emt 0:05:49]} 8. h4 {[%emt 0:01:45]} Nbd7 {[%emt 0:00:14]} 9. Ngf3 {[%emt 0:00:12]} O-O {[%emt 0:00:41]} 10. Qc2 {[%emt 0:01:22]} Ng4 {[%emt 0:00:43]} 11. O-O {[%emt 0:03:20]} Qe7 {[%emt 0:03:05]} 12. a4 {[%emt 0:01:50]} a5 {[%emt 0:02:27]} 13. b5 {[%emt 0:02:17]} c5 {[%emt 0:00:56]} 14. Ne4 {[%emt 0:01:58]} Nb6 {[%emt 0:04:53]} 15. Nc3 {[%emt 0:01:48]} Bf5 {[%emt 0:08:08]} 16. Nd2 {[%emt 0:02:15]} Kh8 {[%emt 0:04:52]} 17. Nd5 {[%emt 0:01:54]} Nxd5 {[%emt 0:00:10]} 18. cxd5 {[%emt 0:00:48]} b6 {[%emt 0:00:13]} 19. Nc4 {[%emt 0:00:20]} Rab8 {[%emt 0:00:22]} 20. Rae1 {[%emt 0:03:54]} Bc8 {[%emt 0:05:31]} 21. e4 {[%emt 0:07:35]} Kh7 {[%emt 0:07:59]} 22. f3 {[%emt 0:00:38]} Nh6 {[%emt 0:00:12]} 23. f4 {[%emt 0:02:39]} Ng4 {[%emt 0:01:29]} 24. Bc3 {[%emt 0:05:43]} f6 {[%emt 0:06:32]} 25. Bd2 {[%emt 0:04:19]} Qd8 {[%emt 0:00:56]} 26. fxe5 {[%emt 0:01:15]} dxe5 {[%emt 0:00:07]} 27. Bf3 {[%emt 0:05:07]} Bd7 {[%emt 0:03:44]} 28. Bxg4 {[%emt 0:01:39]} Bxg4 {[%emt 0:00:11]} 29. Rf2 {[%emt 0:08:11]} Re8 {[%emt 0:00:50]} 30. Kh2 {[%emt 0:03:55]} Rc8 {[%emt 0:03:55]} 31. Be3 {[%emt 0:01:26]} Re7 {[%emt 0:02:02]} 32. Ref1 {[%emt 0:01:05]} Ra7 {[%emt 0:01:01]} 33. Qd2 {[%emt 0:08:13]} Rb7 {[%emt 0:00:47]} 34. Rc1 {[%emt 0:03:15]} Rbb8 {[%emt 0:02:47]} 35. Qe1 {[%emt 0:01:22]} Ra8 {[%emt 0:32:21]} 1/2-1/2